bitfinex/quotes_BTCUSD_20241222
["timestamp","ask_amount","ask_price","bid_price","bid_amount"]
[1734836153997,0.27412093,96755.0,96754.0,0.00071779]
[1734836154561,0.27912093,96755.0,96754.0,0.00071779]
[1734836164336,0.02781253,96755.0,96754.0,0.14508819]
[1734836164749,0.02611337,96755.0,96754.0,0.14508819]
[1734836164955,0.007,96755.0,96754.0,0.14508819]
[1734836165127,0.007,96755.0,96754.0,0.22428819]
[1734836165740,0.005,96755.0,96754.0,0.22428819]
[1734836166370,0.15,96769.0,96755.0,0.206706]
[1734836166574,0.206675,96770.0,96755.0,0.206706]
[1734836166575,0.15,96767.0,96759.0,0.0792]
[1734836166779,0.2513084,96767.0,96759.0,0.0792]
[1734836166939,0.02088492,96766.0,96759.0,0.0792]
[1734836168358,0.02088492,96766.0,96765.0,0.206686]
[1734836168591,0.01911337,96766.0,96765.0,0.206686]
[1734836169147,0.01911337,96776.0,96766.0,0.0959704]
[1734836169358,0.00165711,96775.0,96767.0,0.282982]
[1734836169560,0.00165711,96775.0,96767.0,0.0763]
[1734836169561,0.01911337,96774.0,96767.0,0.0763]
[1734836169971,0.00165711,96773.0,96767.0,0.0763]
[1734836170173,0.02077048,96773.0,96767.0,0.0763]
[1734836170580,0.01911337,96772.0,96767.0,0.0763]
[1734836170829,0.01911337,96771.0,96767.0,0.0763]
[1734836171040,0.3079834,96770.0,96765.0,0.001]
[1734836171235,0.5146584,96770.0,96765.0,0.001]
[1734836171387,0.413358,96768.0,96765.0,0.001]
[1734836171600,0.2513084,96767.0,96754.0,0.04911779]
[1734836171799,0.206704,96757.0,96754.0,0.04911779]
[1734836172047,0.01911337,96756.0,96754.0,0.04911779]
[1734836172220,0.0212267,96756.0,96754.0,0.00071779]
[1734836172424,0.22582037,96755.0,96754.0,0.00071779]
[1734836172967,0.47923223,96755.0,96754.0,0.00071779]
[1734836173749,0.48223223,96755.0,96754.0,0.00071779]
[1734836173949,0.47923223,96755.0,96754.0,0.00071779]
[1734836174367,0.48223223,96755.0,96754.0,0.00071779]
[1734836174568,0.47923223,96755.0,96754.0,0.00071779]
[1734836174930,0.48123223,96755.0,96754.0,0.00071779]
[1734836175133,0.48223223,96755.0,96754.0,0.00071779]
[1734836175613,0.48123223,96755.0,96754.0,0.00071779]
[1734836176169,0.47923223,96755.0,96754.0,0.00071779]
[1734836176369,0.48123223,96755.0,96754.0,0.00071779]
[1734836176587,0.47923223,96755.0,96754.0,0.00071779]
[1734836176995,0.48123223,96755.0,96754.0,0.00071779]
[1734836179683,0.47923223,96755.0,96754.0,0.00071779]
[1734836180129,0.48323223,96755.0,96754.0,0.00071779]
[1734836180422,0.47923223,96755.0,96754.0,0.00071779]
[1734836180652,0.48423223,96755.0,96754.0,0.00071779]
[1734836180852,0.48023223,96755.0,96754.0,0.00071779]
[1734836181168,0.48423223,96755.0,96754.0,0.00071779]
[1734836181480,0.48023223,96755.0,96754.0,0.00071779]
[1734836181681,0.48323223,96755.0,96754.0,0.00071779]
[1734836182130,0.48423223,96755.0,96754.0,0.00071779]
[1734836182498,0.27652523,96755.0,96754.0,0.00071779]
[1734836182933,0.27752523,96755.0,96754.0,0.00071779]
[1734836183141,0.27352523,96755.0,96754.0,0.00071779]
[1734836183346,0.27652523,96755.0,96754.0,0.00071779]
[1734836183670,0.27352523,96755.0,96754.0,0.00071779]
[1734836183797,0.02621683,96755.0,96754.0,0.17248819]
[1734836183999,0.02411337,96755.0,96754.0,0.21998819]
[1734836184776,0.02011337,96755.0,96754.0,0.21998819]
[1734836184987,0.02311337,96755.0,96754.0,0.21998819]
[1734836185894,0.004,96755.0,96754.0,0.21998819]
[1734836186084,0.206694,96762.0,96754.0,0.22098819]
[1734836186506,0.00164563,96761.0,96754.0,0.22098819]
[1734836186713,0.020759,96761.0,96754.0,0.22098819]
[1734836186931,0.020759,96761.0,96754.0,0.21998819]
[1734836187138,0.01911337,96760.0,96758.0,0.0959704]
[1734836187552,0.00164964,96759.0,96758.0,0.0959704]
[1734836187756,0.02076301,96759.0,96754.0,0.21998819]
[1734836188097,0.01911337,96758.0,96754.0,0.21998819]
[1734836188510,0.01911337,96757.0,96754.0,0.21998819]
[1734836188962,0.02076301,96756.0,96754.0,0.21998819]
[1734836189167,0.02076301,96756.0,96755.0,0.0959704]
[1734836189323,0.00164964,96756.0,96754.0,0.21998819]
[1734836189730,0.001,96759.0,96754.0,0.21998819]
[1734836189927,0.413388,96762.0,96754.0,0.21998819]
[1734836190133,0.12214038,96761.0,96754.0,0.21998819]
[1734836190467,0.12214038,96761.0,96754.0,0.12401779]
[1734836190687,0.01918234,96760.0,96754.0,0.21998819]
[1734836190890,0.12049074,96760.0,96754.0,0.21998819]
[1734836191091,0.01918234,96759.0,96754.0,0.21998819]
[1734836191290,0.02083198,96759.0,96754.0,0.21998819]
[1734836191511,0.01918234,96758.0,96757.0,0.0959704]
[1734836192018,0.02083198,96758.0,96757.0,0.0959704]
[1734836192370,0.02083198,96758.0,96754.0,0.12401779]
[1734836192549,0.206703,96757.0,96754.0,0.07651779]
[1734836192748,0.206703,96757.0,96754.0,0.00071779]
[1734836192951,0.12214038,96756.0,96754.0,0.00071779]
[1734836193162,0.15,96755.0,96754.0,0.00071779]
[1734836193373,0.27049074,96755.0,96754.0,0.00071779]
[1734836193582,0.27227091,96755.0,96754.0,0.00071779]
[1734836194614,0.47897791,96755.0,96754.0,0.00071779]
[1734836195874,0.17096251,96755.0,96754.0,0.00071779]
[1734836196086,0.02196251,96755.0,96754.0,0.00071779]
[1734836197325,0.02096251,96755.0,96754.0,0.00071779]
[1734836198251,0.02096251,96755.0,96754.0,0.00171779]
[1734836198986,0.02096251,96755.0,96754.0,0.00071779]
[1734836199210,0.27227091,96755.0,96754.0,0.00071779]
[1734836199522,0.17096251,96755.0,96754.0,0.00071779]
[1734836199733,0.17096251,96755.0,96754.0,0.08231779]
[1734836199734,0.17296251,96755.0,96754.0,0.08231779]
[1734836199936,0.17096251,96755.0,96754.0,0.08231779]
[1734836200507,0.02296251,96755.0,96754.0,0.08231779]
[1734836200643,0.02096251,96755.0,96754.0,0.08231779]
[1734836200843,0.01918234,96755.0,96754.0,0.08131779]
[1734836201562,0.02082975,96755.0,96754.0,0.08131779]
[1734836201974,0.02082975,96755.0,96754.0,0.08231779]
[1734836202747,0.12213815,96755.0,96754.0,0.08231779]
[1734836202971,0.27213815,96755.0,96754.0,0.00171779]
[1734836204586,0.27213815,96755.0,96754.0,0.00071779]
[1734836204766,0.28247728,96755.0,96754.0,0.00071779]
[1734836205383,0.28447728,96755.0,96754.0,0.00071779]
[1734836205586,0.28347728,96755.0,96754.0,0.00071779]
[1734836205997,0.28447728,96755.0,96754.0,0.00071779]
[1734836206198,0.28247728,96755.0,96754.0,0.00071779]
[1734836206544,0.28947728,96755.0,96754.0,0.00071779]
[1734836206746,0.38158073,96755.0,96754.0,0.00071779]
[1734836207983,0.28947728,96755.0,96754.0,0.00071779]
[1734836209550,0.42762781,96755.0,96754.0,0.00071779]
[1734836209783,0.41728868,96755.0,96754.0,0.00071779]
[1734836209992,0.41728868,96755.0,96754.0,0.07921779]
[1734836211120,0.37126124,96755.0,96754.0,0.07921779]
[1734836212634,0.27913815,96755.0,96754.0,0.07921779]
[1734836213052,0.27913815,96755.0,96754.0,0.00071779]
[1734836215458,0.39810634,96755.0,96754.0,0.00071779]
[1734836215818,0.39810634,96755.0,96754.0,0.07591779]
[1734836216335,0.41730918,96755.0,96754.0,0.00071779]
[1734836216605,0.27915865,96755.0,96754.0,0.00071779]
[1734836218948,0.25995581,96755.0,96754.0,0.00071779]
[1734836219554,0.60024317,96755.0,96754.0,0.00071779]
[1734836219769,0.61944886,96755.0,96754.0,0.00071779]
[1734836220595,0.78537846,96755.0,96754.0,0.00071779]
[1734836220754,0.81734879,96755.0,96754.0,0.00071779]
[1734836221330,0.81034879,96755.0,96754.0,0.00071779]
[1734836221471,0.81934879,96755.0,96754.0,0.00071779]
[1734836221664,0.82334879,96755.0,96754.0,0.00071779]
[1734836222070,0.81934879,96755.0,96754.0,0.00071779]
[1734836222343,0.81034879,96755.0,96754.0,0.00071779]
[1734836222454,0.81434879,96755.0,96754.0,0.00071779]
[1734836222656,0.82334879,96755.0,96754.0,0.00071779]
[1734836223315,0.1540296,96747.0,96731.0,0.0777712]
[1734836223553,0.356752,96734.0,96733.0,0.00033524]
[1734836223723,0.4580604,96734.0,96733.0,0.00033524]
[1734836223960,0.47726609,96734.0,96733.0,0.00033524]
[1734836224166,0.47894245,96734.0,96733.0,0.00033524]
[1734836224797,0.48294245,96734.0,96733.0,0.00033524]
[1734836225139,0.48394245,96734.0,96733.0,0.00033524]
[1734836225690,0.46079743,96734.0,96733.0,0.00033524]
[1734836225922,0.56079743,96734.0,96733.0,0.00033524]
[1734836226198,0.90108479,96734.0,96733.0,0.00033524]
[1734836227506,0.58155761,96734.0,96733.0,0.00033524]
[1734836227661,0.59193461,96734.0,96733.0,0.00033524]
[1734836228994,0.356788,96717.0,96716.0,8.57e-05]
[1734836229193,0.4580964,96717.0,96716.0,0.00024953]
[1734836229399,0.46025644,96717.0,96716.0,0.00024953]
[1734836229633,0.47946213,96717.0,96716.0,0.00024953]
[1734836230265,0.50029238,96717.0,96716.0,0.00024953]
[1734836230620,0.60432198,96717.0,96716.0,0.00324953]
[1734836230819,0.61332198,96717.0,96716.0,0.00324953]
[1734836231258,0.61332198,96717.0,96716.0,0.00024953]
[1734836231446,0.356816,96704.0,96694.0,8.57e-05]
[1734836231564,0.4581244,96704.0,96694.0,8.57e-05]
[1734836231927,0.57943034,96704.0,96694.0,8.57e-05]
[1734836232883,0.61001391,96704.0,96694.0,8.57e-05]
[1734836233694,0.61201391,96704.0,96694.0,8.57e-05]
[1734836234163,0.61801391,96704.0,96694.0,8.57e-05]
[1734836234317,0.61801391,96704.0,96703.0,0.0755857]
[1734836234318,0.51801391,96704.0,96703.0,0.0755857]
[1734836234519,0.52845297,96704.0,96703.0,0.0755857]
[1734836234856,0.4978694,96704.0,96703.0,0.0755857]
[1734836235806,0.65830134,96704.0,96703.0,8.57e-05]
[1734836236014,0.306835,96695.0,96694.0,8.57e-05]
[1734836236215,0.47734909,96695.0,96694.0,8.57e-05]
[1734836236414,0.47943918,96695.0,96694.0,8.57e-05]
[1734836237221,0.57943918,96695.0,96694.0,8.57e-05]
[1734836237412,0.15,96692.0,96682.0,0.0755]
[1734836237637,0.2513084,96692.0,96682.0,0.0755]
[1734836237788,0.27259526,96692.0,96682.0,0.0755]
[1734836238195,0.27259526,96692.0,96676.0,0.0495]
[1734836238196,0.27662486,96692.0,96676.0,0.0495]
[1734836238540,0.37662486,96692.0,96676.0,0.0495]
[1734836238749,0.44597658,96692.0,96669.0,20.39059348]
[1734836239533,0.35097658,96692.0,96669.0,20.39059348]
[1734836239760,0.46132146,96692.0,96669.0,20.39059348]
[1734836239943,0.45632146,96692.0,96669.0,20.39059348]
[1734836240351,0.46132146,96692.0,96669.0,20.39059348]
[1734836240648,0.47032146,96692.0,96669.0,20.39059348]
[1734836240849,0.45132146,96692.0,96669.0,20.39059348]
[1734836241280,0.46032146,96692.0,96669.0,20.39059348]
[1734836243046,0.49084667,96692.0,96669.0,20.39059348]
[1734836243397,0.456865,96681.0,96669.0,20.39059348]
[1734836243636,0.5581734,96681.0,96680.0,0.01478609]
[1734836243861,0.66135653,96681.0,96680.0,0.01478609]
[1734836244861,0.67035653,96681.0,96680.0,0.01478609]
[1734836245089,0.66135653,96681.0,96680.0,0.01478609]
[1734836245284,0.67035653,96681.0,96680.0,0.01478609]
[1734836245829,0.67535653,96681.0,96680.0,0.01478609]
[1734836246217,0.67035653,96681.0,96680.0,0.01478609]
[1734836246628,0.67535653,96681.0,96680.0,0.01478609]
[1734836248128,0.64483132,96681.0,96680.0,0.01478609]
[1734836249406,0.65519969,96681.0,96680.0,0.01478609]
[1734836250996,0.50380162,96681.0,96680.0,0.09368609]
[1734836251223,0.50783122,96681.0,96680.0,0.09368609]
[1734836251650,0.53274737,96681.0,96680.0,0.01478609]
[1734836251824,0.65541715,96681.0,96680.0,0.01478609]
[1734836252418,0.68596688,96681.0,96680.0,0.01478609]
[1734836253064,0.206885,96672.0,96669.0,20.46949348]
[1734836253286,0.17894575,96671.0,96669.0,10.21881805]
[1734836253485,0.2513084,96670.0,96669.0,10.21881805]
[1734836253640,0.27051409,96670.0,96669.0,10.21881805]
[1734836253858,0.61037844,96670.0,96669.0,10.11464589]
[1734836254081,0.62914503,96670.0,96669.0,10.07356901]
[1734836254285,0.65969476,96670.0,96669.0,10.07356901]
[1734836255100,0.65969476,96670.0,96669.0,10.03282922]
[1734836255509,0.67028619,96670.0,96669.0,10.03282922]
[1734836255719,0.67028619,96670.0,96669.0,10.03291492]
[1734836256139,0.68028619,96670.0,96669.0,10.03291492]
[1734836256555,0.67028619,96670.0,96669.0,10.03291492]
[1734836256694,0.67928619,96670.0,96669.0,10.03291492]
[1734836256896,0.70373501,96670.0,96669.0,10.03291492]
[1734836261234,0.70373501,96670.0,96669.0,9.92809028]
[1734836263223,0.65397959,96670.0,96669.0,9.92809028]
[1734836263353,0.70375458,96670.0,96669.0,9.92809028]
[1734836264229,0.57312382,96670.0,96669.0,9.92809028]
[1734836264369,0.52541148,96670.0,96669.0,9.92809028]
[1734836264994,0.52541148,96670.0,96669.0,10.00889028]
[1734836267701,0.50093306,96670.0,96669.0,10.00889028]
[1734836267840,0.50093306,96670.0,96669.0,10.05709028]
[1734836268034,0.35093306,96670.0,96669.0,10.05709028]
[1734836268452,0.34034163,96670.0,96669.0,10.05709028]
[1734836269116,0.33134163,96670.0,96669.0,10.05709028]
[1734836269265,0.47734163,96670.0,96669.0,10.05709028]
[1734836269674,0.48534163,96670.0,96669.0,10.05709028]
[1734836270093,0.27845263,96670.0,96669.0,10.05709028]
[1734836270295,0.02714423,96670.0,96669.0,10.05709028]
[1734836270664,0.03114423,96670.0,96669.0,10.05709028]
[1734836271085,0.02714423,96670.0,96669.0,10.05709028]
[1734836271881,0.03014423,96670.0,96669.0,10.05709028]
[1734836272033,0.02214423,96670.0,96669.0,10.05709028]
[1734836272474,0.02514423,96670.0,96669.0,10.05709028]
[1734836272685,0.01914423,96670.0,96669.0,10.05709028]
[1734836273240,0.02414423,96670.0,96669.0,10.05709028]
[1734836273908,0.02014423,96670.0,96669.0,10.05709028]
[1734836274130,0.02414423,96670.0,96669.0,10.05709028]
[1734836274337,0.02314423,96670.0,96669.0,10.05709028]
[1734836274449,0.02414423,96670.0,96669.0,10.05709028]
[1734836275556,0.02414423,96670.0,96669.0,10.15306068]
[1734836278336,0.02431563,96670.0,96669.0,10.15306068]
[1734836281613,0.02331563,96670.0,96669.0,10.15306068]
[1734836281819,0.02331563,96670.0,96669.0,10.15406068]
[1734836282027,0.0001714,96670.0,96669.0,10.15406068]
[1734836282183,0.0001714,96670.0,96669.0,10.15306068]
[1734836282566,0.01931563,96670.0,96669.0,10.15306068]
[1734836282932,0.0001714,96670.0,96669.0,10.15306068]
[1734836284043,0.0001714,96670.0,96669.0,10.15406068]
[1734836287530,0.0001714,96670.0,96669.0,10.15306068]
[1734836287756,0.0001714,96670.0,96669.0,10.15506068]
[1734836288548,0.0001714,96670.0,96669.0,10.15606068]
[1734836288549,0.0011714,96670.0,96669.0,10.15606068]
[1734836289534,0.0001714,96670.0,96669.0,10.15506068]
[1734836289711,0.0001714,96670.0,96669.0,10.15606068]
[1734836289872,0.0001714,96670.0,96669.0,10.15406068]
[1734836290086,0.0001714,96670.0,96669.0,10.15506068]
[1734836290721,0.0001714,96670.0,96669.0,10.15306068]
[1734836290916,0.0001714,96670.0,96669.0,10.15606068]
[1734836291317,0.0001714,96670.0,96669.0,10.15706068]
[1734836291544,0.0001714,96670.0,96669.0,10.15606068]
[1734836291751,0.0001714,96670.0,96669.0,10.15306068]
[1734836291952,0.0011714,96670.0,96669.0,10.15406068]
[1734836292180,0.0001714,96670.0,96669.0,10.15306068]
[1734836292520,0.0011714,96670.0,96669.0,10.15406068]
[1734836293130,0.0011714,96670.0,96669.0,10.15706068]
[1734836298557,0.0001714,96670.0,96669.0,10.15606068]
[1734836298776,0.0001714,96670.0,96669.0,10.15706068]
[1734836299011,0.0011714,96670.0,96669.0,10.15706068]
[1734836299303,0.0011714,96670.0,96669.0,10.15406068]
[1734836299508,0.0011714,96670.0,96669.0,10.15706068]
[1734836307993,0.0001714,96689.0,96680.0,0.0959704]
[1734836308207,0.0001714,96689.0,96680.0,0.44891279]
[1734836308407,0.0001714,96689.0,96680.0,0.5478788]
[1734836308782,0.0001714,96689.0,96680.0,0.7547468]
[1734836308994,0.0001714,96689.0,96688.0,0.2215704]
[1734836309202,0.0001714,96689.0,96688.0,0.6527288]
[1734836309410,0.0001714,96689.0,96688.0,0.7527288]
[1734836310405,0.0001714,96689.0,96688.0,0.7537288]
[1734836310945,0.0001714,96689.0,96688.0,0.7577288]
[1734836311675,0.0001714,96689.0,96688.0,0.7567288]
[1734836311816,0.0011714,96689.0,96688.0,0.7647288]
[1734836312022,0.0001714,96689.0,96688.0,0.7567288]
[1734836312223,0.0001714,96689.0,96688.0,0.7527288]
[1734836312426,0.0021714,96689.0,96688.0,0.77594415]
[1734836313941,0.0021714,96689.0,96688.0,0.92594415]
[1734836314345,0.0021714,96689.0,96688.0,0.45163575]
[1734836315199,0.0021714,96689.0,96688.0,0.2345704]
[1734836315447,0.0011714,96689.0,96688.0,0.008]
[1734836315639,0.0011714,96689.0,96688.0,0.1039704]
[1734836315802,0.0001714,96689.0,96688.0,0.0959704]
[1734836315998,0.0021714,96689.0,96688.0,0.1099704]
[1734836316376,0.0011714,96689.0,96688.0,0.0959704]
[1734836316584,0.0011714,96689.0,96688.0,0.1029704]
[1734836316785,0.0011714,96689.0,96688.0,0.1069704]
[1734836321614,0.0011714,96689.0,96688.0,0.011]
[1734836321841,0.1024798,96689.0,96688.0,0.011]
[1734836322045,0.25433688,96689.0,96688.0,0.011]
[1734836322416,0.25433688,96689.0,96669.0,9.92809028]
[1734836322417,0.62055,96688.0,96669.0,9.92809028]
[1734836322643,0.1013084,96687.0,96671.0,0.0959704]
[1734836322766,0.206881,96674.0,96671.0,0.0959704]
[1734836323226,0.206881,96674.0,96669.0,9.92825401]
[1734836323403,0.206881,96674.0,96671.0,0.0959704]
[1734836323782,0.206876,96676.0,96675.0,0.0959704]
[1734836323982,0.01914954,96677.0,96675.0,0.0959704]
[1734836324636,0.206876,96676.0,96675.0,0.0959704]
[1734836325265,0.206876,96676.0,96675.0,0.0979704]
[1734836325509,0.206876,96676.0,96675.0,0.1009704]
[1734836325833,0.206876,96676.0,96675.0,0.0959704]
[1734836325985,0.206876,96676.0,96675.0,0.1029704]
[1734836326192,0.01914954,96679.0,96678.0,0.0959704]
[1734836326357,0.01914954,96679.0,96678.0,0.1754704]
[1734836326784,0.0001714,96689.0,96678.0,0.1754704]
[1734836326984,0.0001714,96689.0,96683.0,0.0959704]
[1734836327211,0.00181258,96688.0,96683.0,0.0959704]
[1734836327409,0.0001714,96689.0,96683.0,0.0959704]
[1734836328160,0.0021714,96689.0,96683.0,0.0959704]
[1734836328354,0.0001714,96689.0,96684.0,0.206859]
[1734836328554,0.0001714,96689.0,96688.0,0.0959704]
[1734836328757,0.0021714,96689.0,96688.0,0.0959704]
[1734836328957,0.0001714,96689.0,96688.0,0.1419704]
[1734836329109,0.0011714,96689.0,96688.0,0.1419704]
[1734836330427,0.0001714,96689.0,96688.0,0.1419704]
[1734836330626,0.0001714,96689.0,96688.0,0.1429704]
[1734836331033,0.0001714,96689.0,96688.0,0.1419704]
[1734836331272,0.0001714,96689.0,96688.0,0.1439704]
[1734836331517,0.0001714,96689.0,96688.0,0.1459704]
[1734836331957,0.0001714,96689.0,96688.0,0.2213704]
[1734836332181,0.0001714,96689.0,96688.0,0.2173704]
[1734836332368,0.0001714,96689.0,96688.0,0.2193704]
[1734836333382,0.0001714,96689.0,96688.0,0.2213704]
[1734836333702,0.0001714,96689.0,96688.0,0.2193704]
[1734836333983,0.0001714,96689.0,96688.0,0.2213704]
[1734836334612,0.0001714,96689.0,96688.0,0.2243704]
[1734836336772,0.0001714,96689.0,96688.0,0.2213704]
[1734836337168,0.0001714,96689.0,96688.0,0.2203704]
[1734836337307,0.0011714,96689.0,96688.0,0.2253704]
[1734836337506,0.0011714,96689.0,96688.0,0.2223704]
[1734836337823,0.0001714,96689.0,96688.0,0.2213704]
[1734836338071,0.0011714,96689.0,96688.0,0.2273704]
[1734836338895,0.0001714,96689.0,96688.0,0.2213704]
[1734836339226,0.0001714,96689.0,96688.0,0.2283704]
[1734836339227,0.0011714,96689.0,96688.0,0.2283704]
[1734836340278,0.0011714,96689.0,96688.0,0.2243704]
[1734836340451,0.0001714,96689.0,96688.0,0.2173704]
[1734836340858,0.0011714,96689.0,96688.0,0.2243704]
[1734836341055,0.0011714,96689.0,96688.0,0.2283704]
[1734836356319,0.0011714,96689.0,96688.0,0.2243704]
[1734836356514,0.0011714,96689.0,96688.0,0.2283704]
[1734836356719,0.0001714,96689.0,96688.0,0.2213704]
[1734836356926,0.0011714,96689.0,96688.0,0.2283704]
[1734836358389,0.0011714,96689.0,96688.0,0.4526788]
[1734836358597,0.0011714,96689.0,96688.0,0.5526788]
[1734836359198,0.0001714,96689.0,96688.0,0.5416788]
[1734836359596,0.0011714,96689.0,96688.0,0.5526788]
[1734836359801,0.0001714,96689.0,96688.0,0.5456788]
[1734836360000,0.0001714,96689.0,96688.0,0.3186788]
[1734836360229,0.0011714,96689.0,96688.0,0.2263704]
[1734836360425,0.0011714,96689.0,96688.0,0.2313704]
[1734836361065,0.0011714,96689.0,96688.0,0.1354]
[1734836361244,0.0011714,96689.0,96688.0,0.2313704]
[1734836361676,0.02039846,96689.0,96688.0,0.2313704]
[1734836361821,0.02039846,96689.0,96688.0,0.014]
[1734836362024,0.02039846,96689.0,96688.0,0.1099704]
[1734836362232,0.02215682,96689.0,96688.0,0.1099704]
[1734836362442,0.02039846,96689.0,96688.0,0.1099704]
[1734836366882,0.02039846,96689.0,96688.0,0.11100458]
[1734836367077,0.02039846,96689.0,96688.0,0.46101298]
[1734836367299,0.0011714,96689.0,96688.0,0.5599788]
[1734836368259,0.0011714,96689.0,96688.0,0.4599788]
[1734836370096,0.0011714,96689.0,96688.0,0.5599788]
[1734836370712,0.0011714,96689.0,96688.0,0.58074009]
[1734836373641,0.0011714,96689.0,96688.0,1.09786009]
[1734836377540,0.0011714,96689.0,96688.0,1.0770988]
[1734836381382,0.0011714,96689.0,96688.0,0.8770988]
[1734836381526,0.0011714,96689.0,96688.0,0.9770988]
[1734836382456,0.0011714,96689.0,96688.0,1.0770988]
[1734836383455,0.0011714,96689.0,96688.0,1.6232988]
[1734836384063,4e-07,96689.0,96688.0,1.7732988]
[1734836384238,4e-07,96689.0,96688.0,1.77868079]
[1734836384847,4e-07,96689.0,96688.0,1.77368079]
[1734836385245,4e-07,96689.0,96688.0,1.77868079]
[1734836385660,0.0001714,96695.0,96694.0,0.9547704]
[1734836385841,0.0001714,96695.0,96694.0,1.9530168]
[1734836387391,0.0011714,96695.0,96694.0,1.9620168]
[1734836387737,0.0011714,96695.0,96694.0,1.9650168]
[1734836389298,0.0011714,96695.0,96694.0,1.97522707]
[1734836391600,0.0011714,96695.0,96694.0,1.43872707]
[1734836392756,0.0011714,96695.0,96694.0,0.82344827]
[1734836392956,0.0011714,96695.0,96694.0,0.84211867]
[1734836393561,0.0011714,96695.0,96694.0,0.8319084]
[1734836393723,0.0011714,96695.0,96694.0,0.8289084]
[1734836393917,0.0001714,96695.0,96694.0,0.8199084]
[1734836394139,0.0001714,96695.0,96694.0,0.8239084]
[1734836395190,0.0001714,96695.0,96694.0,0.8199084]
[1734836395367,0.0001714,96695.0,96694.0,0.8269084]
[1734836395562,0.0001714,96695.0,96694.0,0.8199084]
[1734836395995,0.0001714,96695.0,96694.0,0.8229084]
[1734836396198,0.0001714,96695.0,96694.0,1.1206168]
[1734836396402,0.01919412,96707.0,96706.0,0.7521824]
[1734836396606,0.01919412,96707.0,96706.0,1.4383908]
[1734836396802,0.0917188,96733.0,96732.0,0.3027264]
[1734836397012,0.0933452,96733.0,96732.0,0.3027264]
[1734836397667,0.09350929,96733.0,96732.0,0.3027264]
[1734836398393,0.00179049,96733.0,96732.0,0.3027264]
[1734836398592,0.00016409,96733.0,96732.0,0.3047264]
[1734836399250,0.00016409,96733.0,96732.0,0.3087264]
[1734836402268,0.00016409,96733.0,96732.0,0.5094348]
[1734836402471,0.00016409,96733.0,96732.0,0.6094348]
[1734836402682,0.00016409,96733.0,96732.0,0.9078348]
[1734836402877,0.00016409,96733.0,96732.0,0.9038348]
[1734836403279,0.00016409,96733.0,96732.0,0.9068348]
[1734836403478,0.00016409,96733.0,96732.0,1.4237248]
[1734836403842,0.00016409,96733.0,96732.0,1.4267248]
[1734836404045,0.00016409,96733.0,96732.0,1.4217248]
[1734836404241,0.00016409,96733.0,96732.0,1.4307248]
[1734836404647,0.00012409,96733.0,96732.0,1.4307248]
[1734836404844,0.00012409,96733.0,96732.0,1.4277248]
[1734836405463,0.00012409,96733.0,96732.0,1.4187248]
[1734836405865,0.00012409,96733.0,96732.0,1.4277248]
[1734836406435,0.00012409,96733.0,96732.0,1.4327248]
[1734836406912,0.00012409,96733.0,96732.0,1.4277248]
[1734836407079,0.00012409,96733.0,96732.0,1.4317248]
[1734836407454,0.00012409,96733.0,96732.0,1.0587248]
[1734836408568,0.00012409,96733.0,96732.0,1.0497248]
[1734836408997,0.00012409,96733.0,96732.0,1.0577248]
[1734836409198,0.00029549,96733.0,96732.0,1.0537248]
[1734836409595,0.00029549,96733.0,96732.0,1.0457248]
[1734836410124,0.00029549,96733.0,96732.0,1.0577248]
[1734836410422,0.00029549,96733.0,96732.0,1.0457248]
[1734836410656,0.00029549,96733.0,96732.0,1.1757248]
[1734836410841,0.00029549,96733.0,96732.0,1.1787248]
[1734836411410,0.00029549,96733.0,96732.0,1.06567121]
[1734836411630,0.00029549,96733.0,96732.0,0.9719688]
[1734836411871,0.00029549,96733.0,96732.0,0.85205523]
[1734836412047,0.00029549,96733.0,96732.0,1.15881123]
[1734836412256,0.00029549,96733.0,96732.0,1.16481123]
[1734836412458,0.00029549,96733.0,96732.0,1.16792677]
[1734836413425,0.00029549,96733.0,96732.0,1.70442677]
[1734836413690,0.00029549,96733.0,96732.0,1.60442677]
[1734836413870,0.00029549,96733.0,96732.0,1.70442677]
[1734836414872,0.00029549,96733.0,96732.0,1.16792677]
[1734836415054,0.00029549,96733.0,96732.0,1.69542677]
[1734836415250,0.00029549,96733.0,96732.0,1.69142677]
[1734836415827,0.00029549,96733.0,96732.0,1.69542677]
[1734836416038,0.00029549,96733.0,96732.0,1.94542677]
[1734836416241,0.00029549,96733.0,96732.0,1.94142677]
[1734836416375,0.00029549,96733.0,96732.0,1.95442677]
[1734836416577,0.00029549,96733.0,96732.0,1.41792677]
[1734836416777,0.00029549,96733.0,96732.0,1.40892677]
[1734836417093,0.00029549,96733.0,96732.0,1.40492677]
[1734836417276,0.00029549,96733.0,96732.0,1.40892677]
[1734836417890,0.00029549,96733.0,96732.0,1.41792677]
[1734836418496,4.9e-07,96733.0,96732.0,1.95042677]
[1734836418815,4.9e-07,96733.0,96732.0,1.95442677]
[1734836419217,0.0001714,96767.0,96766.0,0.3026544]
[1734836419378,0.0003354,96767.0,96766.0,0.3828544]
[1734836420572,0.0003354,96767.0,96766.0,0.3848544]
[1734836421582,0.0003354,96767.0,96766.0,1.1258728]
[1734836421781,0.0003354,96767.0,96766.0,1.1298728]
[1734836422207,0.0003354,96767.0,96766.0,1.14428655]
[1734836422503,0.0003354,96767.0,96766.0,1.14028655]
[1734836422845,0.0003354,96767.0,96766.0,1.14228655]
[1734836423060,0.0003354,96767.0,96766.0,1.13628655]
[1734836423254,0.0003354,96767.0,96766.0,1.13428655]
[1734836423661,0.0003354,96767.0,96766.0,1.13728655]
[1734836424314,0.0003354,96767.0,96766.0,1.14128655]
[1734836424536,0.0003354,96767.0,96766.0,1.13728655]
[1734836424922,0.0003354,96767.0,96766.0,1.14328655]
[1734836425122,0.0003354,96767.0,96766.0,1.13728655]
[1734836425525,0.0003354,96767.0,96766.0,1.14328655]
[1734836425920,0.0003354,96767.0,96766.0,1.14028655]
[1734836426136,0.0003354,96767.0,96766.0,0.93708655]
[1734836426338,0.0003354,96767.0,96766.0,0.73580775]
[1734836426539,0.0003354,96767.0,96766.0,0.83177815]
[1734836426738,0.0003354,96767.0,96766.0,0.82977815]
[1734836427158,0.0003354,96767.0,96766.0,0.8223644]
[1734836427562,0.0003354,96767.0,96766.0,0.8283644]
[1734836427766,0.0003354,96767.0,96766.0,0.8253644]
[1734836427918,0.0003354,96767.0,96766.0,0.8203644]
[1734836428119,0.0003354,96767.0,96766.0,0.8243644]
[1734836429314,0.0003354,96767.0,96766.0,0.8233644]
[1734836429740,0.0003354,96767.0,96766.0,0.83550014]
[1734836430561,0.0003354,96767.0,96766.0,0.83350014]
[1734836431010,0.0003354,96767.0,96766.0,0.83150014]
[1734836431359,0.0003354,96767.0,96766.0,0.83550014]
[1734836433013,0.0003354,96767.0,96766.0,0.83350014]
[1734836433828,0.0003354,96767.0,96766.0,0.82950014]
[1734836434021,0.0003354,96767.0,96766.0,0.62381614]
[1734836434160,0.0003354,96767.0,96766.0,0.62481614]
[1734836434570,0.0003354,96767.0,96766.0,0.62381614]
[1734836434775,0.0003354,96767.0,96766.0,0.62281614]
[1734836434974,0.0003354,96767.0,96766.0,0.62381614]
[1734836435197,0.0003354,96767.0,96766.0,0.6126804]